bitfinex/quotes_BTCUSD_20250422
["timestamp","ask_amount","ask_price","bid_price","bid_amount"]
[1745343759690,0.21946428,91131.0,91130.0,0.009]
[1745343759837,0.11375594,91131.0,91130.0,0.005]
[1745343760049,0.11375594,91131.0,91127.0,0.01097369]
[1745343760252,0.11375594,91130.0,91123.0,0.01097417]
[1745343760475,0.11375594,91130.0,91124.0,0.23045468]
[1745343760652,0.11375594,91130.0,91124.0,0.21947879]
[1745343760864,0.11375594,91130.0,91125.0,0.21947742]
[1745343761073,0.11375594,91130.0,91125.0,0.23045135]
[1745343761412,0.11375594,91130.0,91127.0,0.22147317]
[1745343761631,0.11375594,91130.0,91127.0,0.002]
[1745343762195,0.11475594,91130.0,91127.0,0.002]
[1745343762557,0.1240109,91130.0,91127.0,0.002]
[1745343763016,0.1230109,91130.0,91127.0,0.002]
[1745343763433,0.1240109,91130.0,91127.0,0.004]
[1745343763977,0.1240109,91130.0,91127.0,0.22347346]
[1745343764206,0.1240109,91130.0,91128.0,0.21947052]
[1745343765032,0.01025496,91130.0,91128.0,0.21947052]
[1745343765235,0.00925496,91130.0,91128.0,0.21947052]
[1745343765434,0.00925496,91130.0,91128.0,0.22147052]
[1745343765593,0.01025496,91130.0,91129.0,0.2194691]
[1745343765996,0.002,91130.0,91129.0,0.2194691]
[1745343766509,0.001,91130.0,91129.0,0.2194691]
[1745343766726,0.002,91130.0,91129.0,0.2224691]
[1745343767855,0.002,91130.0,91129.0,0.2244691]
[1745343769442,0.002,91130.0,91129.0,0.22666358]
[1745343769614,0.002,91130.0,91129.0,0.2244691]
[1745343769959,0.002,91130.0,91129.0,0.2224691]
[1745343770160,0.001,91130.0,91129.0,0.2194691]
[1745343770378,0.001,91130.0,91129.0,0.2234691]
[1745343770587,0.001,91130.0,91129.0,0.2194691]
[1745343771025,0.001,91130.0,91129.0,0.2234691]
[1745343771306,0.001,91130.0,91129.0,0.2692691]
[1745343771555,0.002,91130.0,91129.0,0.2782691]
[1745343771771,0.002,91130.0,91129.0,0.2742691]
[1745343771942,0.001,91130.0,91129.0,0.2692691]
[1745343772382,0.002,91130.0,91129.0,0.2742691]
[1745343772949,0.002,91130.0,91129.0,0.2244691]
[1745343773150,0.002,91130.0,91129.0,0.2274691]
[1745343774372,0.002,91130.0,91129.0,0.008]
[1745343778339,0.11575594,91130.0,91129.0,0.008]
[1745343778547,0.21575594,91130.0,91129.0,0.008]
[1745343779307,0.21475594,91130.0,91129.0,0.003]
[1745343779491,0.1,91128.0,91121.0,0.01139881]
[1745343779699,0.1,91128.0,91121.0,0.0004244]
[1745343780804,0.1,91128.0,91121.0,0.0024244]
[1745343781471,0.101,91128.0,91121.0,0.01639881]
[1745343781710,0.101,91128.0,91123.0,0.21948135]
[1745343781919,0.101,91128.0,91125.0,0.01097393]
[1745343782133,0.101,91128.0,91127.0,0.21947392]
[1745343782340,0.101,91128.0,91123.0,0.21948135]
[1745343782341,0.101,91128.0,91120.0,0.21991455]
[1745343782557,0.101,91128.0,91121.0,0.0034244]
[1745343782772,0.1,91128.0,91121.0,0.21991226]
[1745343782993,0.101,91128.0,91123.0,0.01497417]
[1745343783203,0.101,91128.0,91124.0,0.01097405]
[1745343783635,0.101,91128.0,91124.0,0.23045507]
[1745343784039,0.101,91128.0,91124.0,0.01097405]
[1745343784245,0.101,91128.0,91123.0,0.003]
[1745343784449,0.21948114,91124.0,91123.0,0.003]
[1745343784659,0.52575594,91127.0,91124.0,0.01097405]
[1745343784660,0.412,91127.0,91124.0,0.01097405]
[1745343784869,0.412,91127.0,91121.0,0.01139881]
[1745343785074,0.412,91127.0,91122.0,0.23046014]
[1745343785647,0.412,91127.0,91126.0,0.21947632]
[1745343785889,0.41245904,91127.0,91126.0,0.21947632]
[1745343786277,0.41345904,91127.0,91126.0,0.21947632]
[1745343786486,0.00145904,91127.0,91126.0,0.21947632]
[1745343787293,1.0,91150.0,91147.0,0.01097128]
[1745343787496,1.0,91150.0,91149.0,0.21942094]
[1745343788840,1.001,91150.0,91149.0,0.22442094]
[1745343789238,1.0,91150.0,91149.0,0.21942094]
[1745343789568,1.001,91150.0,91149.0,0.22742094]
[1745343790014,1.001,91150.0,91149.0,0.22442094]
[1745343790191,1.001,91150.0,91149.0,0.38737688]
[1745343790394,0.50043972,91150.0,91149.0,0.41365318]
[1745343790591,0.49943972,91150.0,91149.0,0.40865318]
[1745343791027,0.50043972,91150.0,91149.0,0.41265318]
[1745343791639,0.49943972,91150.0,91149.0,0.40865318]
[1745343791836,0.49943972,91150.0,91149.0,0.40565318]
[1745343792041,0.50043972,91150.0,91149.0,0.41465318]
[1745343792446,0.000848,91165.0,91164.0,0.21938484]
[1745343792675,0.000848,91165.0,91164.0,0.22157827]
[1745343793093,0.000848,91165.0,91164.0,0.39927506]
[1745343793271,0.000848,91165.0,91164.0,0.44238163]
[1745343793675,0.000848,91165.0,91164.0,0.44245265]
[1745343793852,0.000848,91165.0,91164.0,0.44345265]
[1745343794657,0.0005572,91165.0,91164.0,0.44345265]
[1745343795718,0.0005572,91165.0,91164.0,0.44645265]
[1745343798469,0.0005572,91165.0,91164.0,0.22345586]
[1745343799036,0.0005572,91165.0,91164.0,0.22564922]
[1745343799293,0.00091,91185.0,91183.0,0.21933913]
[1745343800573,0.002849,91184.0,91183.0,0.21933913]
[1745343803334,0.002849,91184.0,91183.0,0.22153222]
[1745343803941,0.002849,91184.0,91183.0,0.33528816]
[1745343804124,0.002849,91184.0,91183.0,0.33309507]
[1745343805129,0.000849,91184.0,91183.0,0.33309507]
[1745343808482,0.000849,91184.0,91183.0,0.38069507]
[1745343810899,0.000849,91184.0,91183.0,0.38169507]
[1745343811125,0.000849,91184.0,91183.0,0.33309507]
[1745343811333,0.000849,91184.0,91182.0,0.18962078]
[1745343811543,0.000849,91184.0,91183.0,0.22233913]
[1745343812196,0.000849,91184.0,91183.0,0.21933913]
[1745343814055,0.002849,91184.0,91183.0,0.21933913]
[1745343814592,0.002849,91184.0,91183.0,0.22233913]
[1745343814771,0.002849,91184.0,91183.0,0.21933913]
[1745343817526,0.002849,91184.0,91166.0,0.010969]
[1745343817726,0.0458,91183.0,91166.0,0.010969]
[1745343817921,0.0472,91182.0,91167.0,0.01096888]
[1745343818125,0.2193583,91176.0,91164.0,7.102e-05]
[1745343818336,0.0458,91168.0,91164.0,7.102e-05]
[1745343818564,0.0418,91168.0,91164.0,7.102e-05]
[1745343819768,0.0398,91168.0,91164.0,7.102e-05]
[1745343820611,0.0428,91168.0,91164.0,7.102e-05]
[1745343820857,0.0428,91168.0,91167.0,0.21937762]
[1745343821027,0.003,91168.0,91167.0,0.21937762]
[1745343821226,0.005,91168.0,91167.0,0.21937762]
[1745343822043,0.003,91168.0,91167.0,0.21937762]
[1745343822208,0.007,91168.0,91167.0,0.21937762]
[1745343822409,0.004,91168.0,91167.0,0.21937762]
[1745343822837,0.009,91168.0,91167.0,0.21937762]
[1745343826256,0.009,91168.0,91167.0,0.31827108]
[1745343826466,0.000849,91184.0,91167.0,0.53819356]
[1745343826667,0.000849,91184.0,91183.0,0.21933913]
[1745343826871,0.000849,91184.0,91183.0,0.22153215]
[1745343828439,0.000849,91184.0,91183.0,0.33528809]
[1745343828638,0.002849,91184.0,91183.0,0.33309507]
[1745343828957,0.003849,91184.0,91183.0,0.33309507]
[1745343829537,0.003849,91184.0,91183.0,0.38069507]
[1745343836519,0.003849,91184.0,91183.0,0.33309507]
[1745343840391,0.003849,91184.0,91183.0,0.21933913]
[1745343840927,0.003849,91184.0,91183.0,0.22153205]
[1745343841357,0.003849,91184.0,91183.0,0.33528799]
[1745343841508,0.003849,91184.0,91183.0,0.33309507]
[1745343841713,0.003849,91184.0,91183.0,0.08990575]
[1745343842111,0.003849,91184.0,91183.0,0.30924488]
[1745343844342,1e-08,91195.0,91184.0,0.06036683]
[1745343844546,1e-08,91195.0,91194.0,0.26731267]
[1745343844799,0.0008476,91221.0,91219.0,0.21925256]
[1745343845005,0.0008476,91221.0,91219.0,0.22144486]
[1745343845406,0.0008476,91221.0,91219.0,0.21925256]
[1745343845606,0.0008476,91221.0,91219.0,0.23080822]
[1745343846089,0.00130801,91220.0,91219.0,0.23080822]
[1745343847586,0.00130801,91220.0,91217.0,0.23021915]
[1745343847794,0.00130801,91220.0,91216.0,0.01096298]
[1745343847989,0.00130801,91220.0,91217.0,0.23022001]
[1745343848189,0.00130801,91220.0,91217.0,0.01096286]
[1745343848482,0.00130801,91220.0,91217.0,0.23022003]
[1745343848703,0.00130801,91220.0,91218.0,0.21925497]
[1745343849253,0.00130801,91220.0,91219.0,0.21925256]
[1745343853572,0.00130801,91220.0,91219.0,0.22144489]
[1745343854629,0.00130801,91220.0,91219.0,0.33520083]
[1745343854833,0.00130801,91220.0,91219.0,0.3798085]
[1745343855267,0.00130801,91220.0,91219.0,0.3330085]
[1745343855883,0.00130801,91220.0,91219.0,0.3350085]
[1745343857125,0.00130801,91220.0,91219.0,0.3380085]
[1745343862767,0.00130801,91220.0,91219.0,0.22425256]
[1745343863549,0.00130801,91220.0,91219.0,0.22644458]
[1745343868709,0.00130801,91220.0,91219.0,0.22425256]
[1745343873888,0.00130801,91220.0,91219.0,0.22644481]
[1745343876471,0.00130801,91220.0,91219.0,0.22425256]
[1745343879319,0.00130801,91220.0,91219.0,0.21925256]
[1745343879725,0.00130801,91220.0,91219.0,0.22425256]
[1745343880146,0.00130801,91220.0,91219.0,0.21925256]
[1745343880349,0.00130801,91220.0,91219.0,0.22025256]
[1745343880551,0.00130801,91220.0,91219.0,0.22244481]
[1745343880776,0.00130801,91220.0,91219.0,0.22244482]
[1745343880978,0.0008486,91222.0,91220.0,0.21925016]
[1745343881184,0.0008486,91222.0,91221.0,0.3330037]
[1745343883546,0.0008486,91222.0,91221.0,0.3360037]
[1745343883807,0.13425659,91254.0,91228.0,0.26593093]
[1745343883995,0.08895659,91254.0,91228.0,0.37968687]
[1745343886010,0.08895659,91254.0,91228.0,0.38068687]
[1745343886224,0.08895659,91254.0,91228.0,0.37968687]
[1745343886444,0.08895659,91254.0,91228.0,0.38168687]
[1745343887061,0.08895659,91254.0,91228.0,0.38468687]
[1745343892908,0.08895659,91254.0,91228.0,0.33798687]
[1745343895330,0.08895659,91254.0,91253.0,0.21917087]
[1745343896491,0.0054236,91259.0,91256.0,0.21916367]
[1745343896665,0.0014237,91257.0,91256.0,0.21916367]
[1745343897795,0.0014237,91257.0,91256.0,0.22135505]
[1745343898757,0.0014237,91257.0,91256.0,0.21916367]
[1745343898970,0.0014237,91257.0,91256.0,0.22135506]
[1745343899641,0.0014237,91257.0,91256.0,0.23242362]
[1745343899817,0.0014237,91257.0,91256.0,0.23023223]
[1745343902546,0.0014237,91257.0,91256.0,0.34398817]
[1745343902968,0.0014237,91257.0,91256.0,0.34498817]
[1745343903184,0.0014237,91257.0,91256.0,0.34398817]
[1745343903404,0.00182867,91259.0,91258.0,0.21915886]
[1745343903627,0.00182867,91259.0,91258.0,0.33510592]
[1745343903848,0.00182867,91259.0,91258.0,0.3329148]
[1745343905630,0.00182867,91259.0,91258.0,0.3339148]
[1745343906045,0.00182867,91259.0,91258.0,0.3329148]
[1745343906168,0.00182867,91259.0,91258.0,0.3349148]
[1745343908885,0.00182867,91259.0,91258.0,0.22115886]
[1745343909459,0.00182867,91259.0,91258.0,0.002]
[1745343909669,0.21700984,91259.0,91258.0,0.002]
[1745343909878,0.21800984,91259.0,91258.0,0.002]
[1745343910087,0.31116847,91254.0,91253.0,7.102e-05]
[1745343910290,0.38863047,91240.0,91224.0,0.01096202]
[1745343910491,0.11375594,91239.0,91233.0,0.01148327]
[1745343910626,0.1,91238.0,91230.0,0.0109613]
[1745343910833,0.21375594,91238.0,91232.0,0.01096106]
[1745343911034,0.1,91238.0,91236.0,0.21920996]
[1745343912985,0.1,91238.0,91234.0,0.2301723]
[1745343913184,0.1,91238.0,91234.0,0.01096082]
[1745343913392,0.1,91238.0,91235.0,0.2301736]
[1745343913595,0.1,91238.0,91235.0,0.0109607]
[1745343914373,0.21375594,91238.0,91224.0,0.00048306]
[1745343914577,0.0495,91237.0,91229.0,0.01110079]
[1745343914790,0.0495,91237.0,91229.0,0.23018918]
[1745343914996,0.0495,91237.0,91232.0,0.23018219]
[1745343915532,0.0495,91237.0,91233.0,0.23017772]
[1745343915743,0.0495,91237.0,91233.0,0.21921678]
[1745343915949,0.0495,91237.0,91234.0,0.23017459]
[1745343916148,0.0467,91242.0,91239.0,0.23016197]
[1745343916380,0.1,91238.0,91235.0,0.23017337]
[1745343916549,0.1,91238.0,91236.0,0.21921094]
[1745343917328,0.1,91238.0,91237.0,0.21920931]
[1745343917532,0.1,91238.0,91236.0,0.21921094]
[1745343917737,0.1,91238.0,91234.0,0.00715699]
[1745343918140,0.1,91238.0,91236.0,0.21921169]
[1745343918472,0.1,91238.0,91237.0,0.21920931]
[1745343919872,0.1,91238.0,91236.0,0.21921169]
[1745343920230,0.1,91238.0,91237.0,0.21920931]
[1745343920631,0.1,91238.0,91236.0,0.21921169]
[1745343920938,0.1,91238.0,91236.0,0.21921005]
[1745343921539,0.1,91238.0,91237.0,0.21920931]
[1745343922605,0.1,91238.0,91234.0,0.22637199]
[1745343922862,0.1,91238.0,91235.0,0.23017391]
[1745343923071,0.21375594,91238.0,91231.0,0.21922334]
[1745343923317,0.21375594,91238.0,91231.0,0.01096118]
[1745343923555,0.21375594,91238.0,91233.0,0.23017753]
[1745343923774,0.21375594,91238.0,91234.0,0.21921414]
[1745343924563,0.21375594,91238.0,91234.0,0.23017496]
[1745343924964,0.21375594,91238.0,91234.0,0.21921414]
[1745343925445,0.21375594,91238.0,91234.0,0.23017496]
[1745343925654,0.21375594,91238.0,91233.0,0.21921659]
[1745343926065,0.21375594,91238.0,91233.0,0.01096094]
[1745343926392,0.0472,91236.0,91224.0,0.00048306]
[1745343926590,0.0472,91230.0,91224.0,0.00048306]
[1745343926792,0.11375594,91229.0,91224.0,0.00048306]
[1745343927168,0.21923814,91225.0,91224.0,0.00048306]
[1745343927375,0.33299408,91225.0,91224.0,0.00048306]
[1745343928151,0.34122937,91225.0,91224.0,0.00048306]
[1745343928350,0.12199123,91225.0,91224.0,0.00048306]
[1745343928569,0.75322937,91225.0,91224.0,0.00048306]
[1745343928776,0.84552937,91225.0,91224.0,0.00048306]
[1745343929219,0.62629123,91225.0,91224.0,0.00048306]
[1745343930892,0.62629123,91225.0,91224.0,7.103e-05]
[1745343931498,0.51253529,91225.0,91224.0,7.103e-05]
[1745343931694,0.42023529,91225.0,91224.0,7.103e-05]
[1745343931898,0.41823529,91225.0,91221.0,0.21924636]
[1745343932109,0.41823529,91225.0,91224.0,0.21924055]
[1745343932364,0.41823529,91225.0,91220.0,0.23021038]
[1745343932573,0.00623529,91225.0,91221.0,0.01096238]
[1745343932778,0.00623529,91225.0,91219.0,0.01096262]
[1745343932990,0.05532026,91231.0,91224.0,0.23020016]
[1745343933188,0.00812026,91231.0,91229.0,0.21922796]
[1745343933337,0.00812026,91231.0,91230.0,0.21922613]
[1745343933547,0.4592,91239.0,91231.0,0.01096118]
[1745343933746,0.21375594,91238.0,91231.0,0.01096118]
[1745343933954,0.1,91238.0,91231.0,0.01096118]
[1745343934152,0.1,91238.0,91237.0,0.21920931]
[1745343934492,0.412,91250.0,91240.0,0.2301601]
[1745343934704,0.1,91245.0,91237.0,0.23016977]
[1745343934908,0.1,91247.0,91237.0,0.01096046]
[1745343935142,0.1,91247.0,91237.0,0.21920928]
[1745343935343,0.1,91247.0,91236.0,0.23017104]
[1745343935344,0.1,91245.0,91239.0,0.23016413]
[1745343935508,0.1,91245.0,91241.0,0.01095998]
[1745343935733,0.412,91250.0,91241.0,0.01095998]
[1745343935881,0.1,91247.0,91237.0,0.21920871]
[1745343936089,0.1,91247.0,91233.0,0.23017937]
[1745343936090,0.1,91245.0,91233.0,0.23017979]
[1745343936286,0.1,91245.0,91235.0,0.0109607]
[1745343936482,0.21375594,91245.0,91229.0,0.23018906]
[1745343936688,0.21375594,91245.0,91226.0,0.01096178]
[1745343936689,0.38863047,91240.0,91226.0,0.01096178]
[1745343936990,0.38863047,91240.0,91219.0,0.01096262]
[1745343936991,0.2664073,91238.0,91219.0,0.01096262]
[1745343937205,0.15885594,91237.0,91219.0,0.21925247]
[1745343937485,0.15885594,91237.0,91221.0,0.01096238]
[1745343937486,0.25885594,91237.0,91221.0,0.01096238]
[1745343937663,0.01096058,91236.0,91220.0,0.0109625]
[1745343937874,0.11375594,91235.0,91221.0,0.01096238]
[1745343938028,0.01096082,91234.0,91217.0,0.00050876]
[1745343938207,0.1,91229.0,91217.0,0.00050876]
[1745343938407,0.11375594,91228.0,91217.0,0.00050876]
[1745343938835,0.11375594,91228.0,91219.0,0.01096262]
[1745343939062,0.11375594,91228.0,91217.0,0.00150876]
[1745343939258,0.12196402,91228.0,91217.0,0.00150876]
[1745343939463,0.12196402,91228.0,91217.0,0.00050876]
[1745343941130,0.0464,91219.0,91217.0,0.00050876]
[1745343941329,0.1,91218.0,91217.0,0.00050876]
[1745343942276,0.1,91218.0,91217.0,9.673e-05]
[1745343943088,0.102,91218.0,91217.0,9.673e-05]
[1745343943657,0.105,91218.0,91217.0,9.673e-05]
[1745343945017,0.48331091,91218.0,91217.0,9.673e-05]
[1745343945227,0.26405594,91218.0,91217.0,9.673e-05]
[1745343950003,0.105,91218.0,91217.0,9.673e-05]
[1745343950222,0.105,91218.0,91217.0,0.00050876]
[1745343950658,0.105,91218.0,91217.0,0.21976613]
[1745343950896,0.105,91218.0,91217.0,0.00050876]
[1745343951733,0.21875594,91218.0,91217.0,0.00050876]
[1745343955431,0.26474819,91218.0,91217.0,0.00050876]
[1745343955640,0.31045594,91218.0,91217.0,0.00050876]
[1745343956057,0.72245594,91218.0,91217.0,0.00050876]
[1745343956258,0.72345594,91218.0,91217.0,0.00050876]
[1745343956969,0.72045594,91218.0,91217.0,0.00050876]
[1745343957450,0.72345594,91218.0,91217.0,0.00050876]
[1745343957827,0.72145594,91218.0,91217.0,0.00050876]
[1745343958029,0.72645594,91218.0,91217.0,0.00050876]
[1745343963731,1.06645594,91218.0,91217.0,0.00050876]
[1745343964886,1.07299679,91218.0,91217.0,0.00050876]
[1745343965108,1.18674884,91218.0,91217.0,0.00050876]
[1745343965396,1.42000381,91218.0,91217.0,0.00150876]
[1745343965561,1.41400381,91218.0,91217.0,0.00150876]
[1745343965848,1.41400381,91218.0,91217.0,0.00050876]
[1745343965849,1.40600381,91218.0,91217.0,0.00050876]
[1745343966048,1.40600381,91218.0,91217.0,0.00150876]
[1745343966248,1.42000381,91218.0,91217.0,0.00150876]
[1745343966667,1.30625176,91218.0,91217.0,0.00150876]
[1745343968523,1.30625176,91218.0,91192.0,0.01181348]
[1745343968524,0.21931507,91193.0,91192.0,0.000847]
[1745343968737,0.33307101,91193.0,91192.0,0.00130661]
[1745343969713,0.33307101,91193.0,91192.0,0.00330661]
[1745343970334,0.3440924,91193.0,91192.0,0.00330661]
[1745343970535,0.01096671,91185.0,91166.0,0.07288728]
[1745343970740,0.12472277,91184.0,91168.0,0.01096876]
[1745343970914,0.12472277,91184.0,91167.0,0.01108089]
[1745343971115,0.01096719,91181.0,91167.0,0.00011201]
[1745343971380,0.11375594,91180.0,91167.0,0.00011201]
[1745343971794,0.11375594,91180.0,91167.0,0.00611201]
[1745343971991,0.11375594,91180.0,91168.0,0.006]
[1745343972193,0.11375594,91180.0,91171.0,0.23033608]
[1745343972349,0.11375594,91180.0,91170.0,0.01096852]
[1745343972770,0.11375594,91180.0,91176.0,0.21935573]
[1745343972971,0.00812923,91184.0,91180.0,0.01096731]
[1745343973196,0.412,91192.0,91178.0,0.01096755]
[1745343973366,0.11375594,91191.0,91177.0,0.21935174]
[1745343973747,0.11375594,91191.0,91175.0,0.21935793]
[1745343974153,0.11375594,91191.0,91176.0,0.01096779]
[1745343974563,0.11375594,91191.0,91173.0,0.23033133]
[1745343974763,0.12217351,91191.0,91177.0,0.003]
[1745343975165,0.12217351,91191.0,91176.0,0.21935579]
[1745343975382,0.12217351,91191.0,91176.0,0.22235579]
[1745343975568,0.12217351,91191.0,91176.0,0.22435579]
[1745343975726,0.12217351,91191.0,91176.0,0.23232358]
[1745343975927,0.12217351,91191.0,91177.0,0.003]
[1745343977194,0.12217351,91191.0,91175.0,0.23032564]
[1745343977446,0.12217351,91191.0,91177.0,0.003]
[1745343977931,0.12217351,91191.0,91177.0,0.005]
[1745343978270,0.12217351,91191.0,91177.0,0.003]
[1745343978636,0.1331395,91191.0,91177.0,0.003]
[1745343978848,0.12217351,91191.0,91177.0,0.003]
[1745343980565,0.1331395,91191.0,91177.0,0.003]
[1745343980769,0.21932229,91190.0,91177.0,0.003]
[1745343981027,0.11375594,91189.0,91177.0,0.003]
[1745343981586,0.11375594,91189.0,91177.0,0.005]
[1745343981896,0.11375594,91189.0,91177.0,0.002]
[1745343982100,0.11375594,91189.0,91177.0,0.003]
[1745343982298,0.11375594,91189.0,91177.0,0.005]
[1745343983313,0.01096659,91186.0,91177.0,0.002]
[1745343983494,0.11375594,91185.0,91177.0,0.002]
[1745343983698,0.23030576,91184.0,91177.0,0.002]
[1745343983917,0.12472289,91183.0,91177.0,0.002]
[1745343984143,0.11375594,91183.0,91177.0,0.005]
[1745343984339,0.11375594,91183.0,91167.0,0.01113565]
[1745343984340,0.34406216,91183.0,91167.0,0.01113565]
[1745343984587,0.11375594,91183.0,91177.0,0.005]
[1745343984965,0.11375594,91183.0,91177.0,0.002]
[1745343985204,0.11375594,91183.0,91177.0,0.005]
[1745343985424,0.11375594,91183.0,91177.0,0.003]
[1745343985653,0.11375594,91183.0,91177.0,0.005]
[1745343985911,0.00841757,91191.0,91181.0,0.01096719]
[1745343986127,0.12217351,91191.0,91189.0,0.21932469]
[1745343986353,0.10736,91209.0,91188.0,0.01096635]
[1745343986354,0.412,91203.0,91188.0,0.01096635]
[1745343986576,0.00831872,91191.0,91189.0,0.23028879]
[1745343986823,0.11375594,91203.0,91195.0,0.01096551]
[1745343987273,0.11375594,91203.0,91194.0,0.2302783]
[1745343987502,0.11375594,91203.0,91195.0,0.23027531]
[1745343987777,0.11375594,91203.0,91195.0,0.01096551]
[1745343988044,0.21925345,91219.0,91195.0,0.01096551]
[1745343988045,0.1,91197.0,91196.0,0.3815638]
[1745343988282,0.01096214,91223.0,91200.0,0.01096491]
[1745343988523,0.1,91207.0,91203.0,0.20227815]
[1745343988758,0.1,91207.0,91200.0,0.01123359]
[1745343988993,0.1,91207.0,91202.0,0.23025803]
[1745343989233,0.1,91207.0,91204.0,0.01096443]
[1745343989787,0.1,91207.0,91205.0,0.21928389]
[1745343990002,0.412,91227.0,91208.0,0.21927901]
[1745343990213,0.412,91227.0,91210.0,0.23023614]
[1745343990414,0.005,91229.0,91215.0,0.23022256]
[1745343990631,0.005,91229.0,91227.0,0.01285]
[1745343990991,0.0080618,91228.0,91227.0,0.01285]
[1745343991191,0.1,91228.0,91227.0,0.01385]
[1745343991829,0.109,91228.0,91227.0,0.01485]
[1745343992032,0.10945976,91228.0,91227.0,0.01485]
[1745343992459,0.10945976,91228.0,91227.0,0.02619184]
[1745343993301,0.10145976,91228.0,91227.0,0.02519184]
[1745343993507,0.10045976,91228.0,91227.0,0.02519184]
[1745343993718,0.10445976,91228.0,91227.0,0.02519184]
[1745343993929,0.10545976,91228.0,91227.0,0.02519184]
[1745343994140,0.00145976,91228.0,91227.0,0.02619184]
[1745343994284,0.00445976,91228.0,91227.0,0.02838383]
[1745343994508,0.00445976,91228.0,91227.0,0.02619184]
[1745343994903,0.00545976,91228.0,91227.0,0.02619184]
[1745343995104,0.00245976,91228.0,91227.0,0.02619184]
[1745343995770,0.01096082,91234.0,91227.0,0.01485]
[1745343995940,0.21375594,91234.0,91227.0,0.01496201]
[1745343996143,0.0109613,91230.0,91227.0,0.00211201]
[1745343996372,0.10090594,91229.0,91227.0,0.00211201]
[1745343996876,0.001,91228.0,91227.0,0.00211201]
[1745343997206,0.001,91228.0,91227.0,0.00311201]
[1745343997495,0.00805934,91240.0,91227.0,0.00211201]
[1745343997864,0.1,91234.0,91227.0,0.00311201]
[1745343998060,0.1,91234.0,91227.0,0.00211201]
[1745343998249,0.1,91234.0,91227.0,0.00311201]
[1745343999419,0.001,91228.0,91227.0,0.00211201]
[1745343999623,0.001,91228.0,91227.0,0.00411201]
[1745344000006,0.00810362,91242.0,91227.0,0.00411201]
[1745344000207,0.101,91234.0,91227.0,0.00211201]
[1745344000409,0.102,91234.0,91220.0,0.2192489]
[1745344000703,0.21475594,91234.0,91222.0,0.01096226]
[1745344000955,0.001,91228.0,91227.0,0.002]
[1745344001357,0.001,91228.0,91222.0,0.01096226]
[1745344002047,0.001,91228.0,91221.0,0.23020976]
[1745344002253,0.055884,91238.0,91220.0,0.02246367]
[1745344002450,0.1,91234.0,91220.0,0.02246367]
[1745344002875,0.1,91234.0,91220.0,0.01150117]
[1745344003095,0.01096106,91232.0,91220.0,0.01150117]
[1745344003321,0.12471676,91234.0,91221.0,0.002]
[1745344003548,0.21375594,91234.0,91220.0,0.01150117]
[1745344003751,0.21375594,91234.0,91220.0,0.01450117]
[1745344003887,0.1,91234.0,91227.0,0.01096166]
[1745344004095,0.1,91234.0,91228.0,0.01096154]
[1745344004298,0.1,91234.0,91232.0,0.2192208]
[1745344004706,0.09908355,91234.0,91232.0,0.2192208]
[1745344004905,0.09924782,91234.0,91232.0,0.2192208]
[1745344005267,0.1,91234.0,91232.0,0.21922088]
[1745344005469,0.1,91234.0,91233.0,0.21921892]
[1745344005685,0.1,91234.0,91230.0,0.27558582]
[1745344005880,0.1,91234.0,91233.0,0.21921892]
[1745344006099,0.001,91234.0,91233.0,0.21921892]
[1745344006381,0.001,91240.0,91232.0,0.21922132]
[1745344006589,0.001,91234.0,91233.0,0.2214109]
[1745344006791,0.002,91234.0,91233.0,0.2214109]
[1745344007166,0.001,91240.0,91237.0,0.01096046]
[1745344007351,0.101,91240.0,91237.0,0.23016938]
[1745344007555,0.102,91240.0,91237.0,0.23016938]
[1745344007952,0.102,91240.0,91236.0,0.23017225]
[1745344008167,0.102,91240.0,91237.0,0.01096046]
[1745344008894,0.101,91240.0,91237.0,0.01096046]
[1745344009091,0.101,91240.0,91237.0,0.23016848]
[1745344009298,0.103,91240.0,91236.0,0.01096058]
[1745344009516,0.103,91240.0,91234.0,0.23017515]
[1745344009694,0.103,91240.0,91235.0,0.0109607]
[1745344010304,0.101,91240.0,91235.0,0.0109607]
[1745344010514,0.103,91240.0,91235.0,0.0109607]
[1745344010766,0.103,91240.0,91234.0,0.01096082]
[1745344010986,0.103,91240.0,91227.0,0.01096166]
[1745344011139,0.103,91240.0,91223.0,0.01096214]
[1745344011347,0.103,91240.0,91225.0,0.0109619]
[1745344011874,0.101,91240.0,91225.0,0.23019878]
[1745344012027,0.101,91240.0,91225.0,0.0109619]
[1745344012232,0.103,91240.0,91225.0,0.0109619]
[1745344012619,0.101,91240.0,91226.0,0.23019535]
[1745344013021,0.101,91240.0,91225.0,0.23419977]
[1745344013206,0.101,91240.0,91225.0,0.22323749]
[1745344013406,0.101,91240.0,91226.0,0.01096178]
[1745344013566,0.101,91240.0,91228.0,0.01096154]
[1745344013766,0.101,91240.0,91227.0,0.230195]
[1745344013972,0.101,91240.0,91226.0,0.01396178]
[1745344014185,0.0492,91239.0,91226.0,0.003]
[1745344014807,0.06016022,91239.0,91226.0,0.003]
[1745344014994,0.01096058,91236.0,91226.0,0.002]
[1745344015189,0.11375594,91238.0,91222.0,0.01096226]
[1745344015390,0.11375594,91238.0,91223.0,0.23020304]
[1745344015594,0.11375594,91238.0,91218.0,0.01096274]
[1745344015595,0.0492,91239.0,91236.0,0.21920966]
[1745344015797,0.001,91240.0,91237.0,0.01096046]
[1745344016004,0.101,91240.0,91238.0,0.2192069]
[1745344016204,0.101,91240.0,91237.0,0.01096046]
[1745344016536,0.101,91240.0,91235.0,0.0109607]
[1745344016744,0.002,91239.0,91236.0,0.23017229]
[1745344016909,0.002,91239.0,91237.0,0.21920918]
[1745344017112,0.002,91239.0,91236.0,0.23017097]
[1745344017475,0.002,91239.0,91237.0,0.21920833]
[1745344017613,0.002,91239.0,91238.0,0.2192069]
[1745344018487,0.001,91240.0,91238.0,0.2192069]
[1745344018834,0.103,91240.0,91238.0,0.2192069]
[1745344019034,0.103,91240.0,91237.0,0.21920466]
[1745344019209,0.103,91240.0,91235.0,0.21921279]
[1745344019411,0.001,91239.0,91238.0,0.21920632]
[1745344020008,0.004,91240.0,91238.0,0.21920632]
[1745344020241,0.102,91240.0,91238.0,0.21920632]
[1745344020756,0.104,91240.0,91239.0,0.2192045]
[1745344021372,0.103,91240.0,91239.0,0.2192045]
[1745344021878,0.101,91240.0,91239.0,0.2192045]